[Event "Titled Tuesday Blitz December 20 Late 2022"]
[White "Ferreira, Vitor Hugo Vieira"]
[Black "Gerbelli Neto, Eduardo"]
[WhiteFideId "2119765"]
[BlackFideId "2103281"]
[WhiteElo "2146"]
[BlackElo "2178"]
[Result "1-0"]
[Round "07"]
[TimeControl "180+1"]
[Date "2022.12.21"]
[WhiteClock "0:00:10"]
[BlackClock "0:00:02"]

1. e4 {[%clk 0:03:00]}  e5 {[%clk 0:02:59]} 2. Nf3 {[%clk 0:02:59]}  Nc6 {[%clk 0:03:00]} 3. Bb5 {[%clk 0:02:59]}  a6 {[%clk 0:02:59]} 4. Ba4 {[%clk 0:02:59]}  d6 {[%clk 0:02:59]} 5. O-O {[%clk 0:02:59]}  Bg4 {[%clk 0:02:58]} 6. c3 {[%clk 0:02:54]}  Qf6 {[%clk 0:02:58]} 7. d4 {[%clk 0:02:46]}  b5 {[%clk 0:02:44]} 8. d5 {[%clk 0:02:43]}  Bxf3 {[%clk 0:02:32]} 9. gxf3 {[%clk 0:02:40]}  Nce7 {[%clk 0:02:28]} 10. Bc2 {[%clk 0:02:38]}  Ng6 {[%clk 0:02:28]} 11. a4 {[%clk 0:02:34]}  Rb8 {[%clk 0:02:27]} 12. axb5 {[%clk 0:02:34]}  axb5 {[%clk 0:02:28]} 13. Kh1 {[%clk 0:02:27]}  Nh4 {[%clk 0:02:28]} 14. f4 {[%clk 0:02:28]}  exf4 {[%clk 0:02:24]} 15. Qg4 {[%clk 0:02:28]}  g5 {[%clk 0:02:12]} 16. Na3 {[%clk 0:02:27]}  Nh6 {[%clk 0:02:05]} 17. Qe2 {[%clk 0:02:24]}  Be7 {[%clk 0:01:50]} 18. f3 {[%clk 0:02:18]}  Rg8 {[%clk 0:01:25]} 19. Nxb5 {[%clk 0:02:16]}  Bd8 {[%clk 0:01:25]} 20. Nd4 {[%clk 0:02:15]}  g4 {[%clk 0:01:17]} 21. Nc6 {[%clk 0:02:14]}  gxf3 {[%clk 0:01:11]} 22. Rxf3 {[%clk 0:02:11]}  Nxf3 {[%clk 0:01:10]} 23. Qxf3 {[%clk 0:02:11]}  Rc8 {[%clk 0:00:46]} 24. Ba4 {[%clk 0:01:28]}  Kf8 {[%clk 0:00:41]} 25. Bxf4 {[%clk 0:01:26]}  Ng4 {[%clk 0:00:33]} 26. Rf1 {[%clk 0:01:20]}  h5 {[%clk 0:00:11]} 27. Nxd8 {[%clk 0:01:09]}  Rxd8 {[%clk 0:00:11]} 28. Bh6+ {[%clk 0:01:04]}  Ke7 {[%clk 0:00:07]} 29. Bf4 {[%clk 0:00:51]}  Rg6 {[%clk 0:00:05]} 30. h3 {[%clk 0:00:49]}  Rdg8 {[%clk 0:00:04]} 31. hxg4 {[%clk 0:00:45]}  hxg4 {[%clk 0:00:05]} 32. Qg3 {[%clk 0:00:45]}  Rh8+ {[%clk 0:00:05]} 33. Kg1 {[%clk 0:00:44]}  Rh3 {[%clk 0:00:06]} 34. Qg2 {[%clk 0:00:41]}  Qh4 {[%clk 0:00:06]} 35. Bd1 {[%clk 0:00:31]}  g3 {[%clk 0:00:06]} 36. Rf3 {[%clk 0:00:24]}  Rh2 {[%clk 0:00:04]} 37. Qxg3 {[%clk 0:00:10]}  Rxg3+ {[%clk 0:00:04]} 38. Bxg3 {[%clk 0:00:11]}  Qh3 {[%clk 0:00:03]} 39. Bxh2 {[%clk 0:00:11]}  Qg4+ {[%clk 0:00:02]} 40. Kf2 {[%clk 0:00:11]}  Qh4+ {[%clk 0:00:02]} 41. Bg3 {[%clk 0:00:12]}  Qh1 {[%clk 0:00:02]} 42. Be2 {[%clk 0:00:12]}  Qc1 {[%clk 0:00:02]} 43. Bh4+ {[%clk 0:00:12]}  f6 {[%clk 0:00:03]} 44. Bxf6+ {[%clk 0:00:12]}  Kd7 {[%clk 0:00:03]} 45. Bh4 {[%clk 0:00:12]}  Qxb2 {[%clk 0:00:04]} 46. Re3 {[%clk 0:00:12]}  Ke8 {[%clk 0:00:04]} 47. Bg3 {[%clk 0:00:12]}  Qd2 {[%clk 0:00:04]} 48. Rf3 {[%clk 0:00:12]}  Ke7 {[%clk 0:00:04]} 49. Bh4+ {[%clk 0:00:12]}  Ke8 {[%clk 0:00:05]} 50. Bg3 {[%clk 0:00:12]}  Qg5 {[%clk 0:00:05]} 51. Bf4 {[%clk 0:00:12]}  Qh4+ {[%clk 0:00:04]} 52. Ke3 {[%clk 0:00:13]}  Qe1 {[%clk 0:00:04]} 53. Rg3 {[%clk 0:00:12]}  Qxc3+ {[%clk 0:00:04]} 54. Bd3 {[%clk 0:00:12]}  Qe1+ {[%clk 0:00:04]} 55. Kf3 {[%clk 0:00:12]}  Qd1+ {[%clk 0:00:03]} 56. Be2 {[%clk 0:00:11]}  Qb3+ {[%clk 0:00:03]} 57. Kf2 {[%clk 0:00:12]}  Qc2 {[%clk 0:00:03]} 58. Kf3 {[%clk 0:00:12]}  Kf7 {[%clk 0:00:03]} 59. Rg5 {[%clk 0:00:11]}  Qc3+ {[%clk 0:00:03]} 60. Be3 {[%clk 0:00:11]}  Qb2 {[%clk 0:00:01]} 61. Rf5+ {[%clk 0:00:11]}  Ke7 {[%clk 0:00:01]} 62. Bg5+ {[%clk 0:00:11]}  Ke8 {[%clk 0:00:01]} 63. Ke3 {[%clk 0:00:11]}  Qc3+ {[%clk 0:00:02]} 64. Kf4 {[%clk 0:00:10]}  Qd2+ {[%clk 0:00:02]} 65. Kf3 {[%clk 0:00:10]}  Qc3+ {[%clk 0:00:02]} 66. Kf2 {[%clk 0:00:10]}  Qc2 {[%clk 0:00:02]} 67. Kf1 {[%clk 0:00:10]} 1-0


[Site "https://www.chess.com"]

[Event "Titled Tuesday Blitz December 20 Late 2022"]
[White "Figorito, Nick"]
[Black "Yuan, Qingyu"]
[WhiteFideId "30923689"]
[BlackFideId "8609772"]
[WhiteElo "2410"]
[BlackElo "2359"]
[Result "0-1"]
[Round "07"]
[TimeControl "180+1"]
[Date "2022.12.21"]
[WhiteClock "0:00:03"]
[BlackClock "0:00:09"]

1. Nf3 {[%clk 0:03:00]}  d5 {[%clk 0:02:59]} 2. g3 {[%clk 0:03:01]}  c5 {[%clk 0:02:59]} 3. Bg2 {[%clk 0:03:01]}  Nc6 {[%clk 0:02:59]} 4. d4 {[%clk 0:03:02]}  Nf6 {[%clk 0:02:59]} 5. O-O {[%clk 0:03:02]}  e6 {[%clk 0:02:59]} 6. c4 {[%clk 0:03:02]}  dxc4 {[%clk 0:03:00]} 7. Ne5 {[%clk 0:03:03]}  Bd7 {[%clk 0:03:00]} 8. Nxc6 {[%clk 0:03:01]}  Bxc6 {[%clk 0:03:01]} 9. Bxc6+ {[%clk 0:03:01]}  bxc6 {[%clk 0:03:02]} 10. Qa4 {[%clk 0:03:02]}  cxd4 {[%clk 0:02:45]} 11. Qxc6+ {[%clk 0:03:01]}  Nd7 {[%clk 0:02:45]} 12. Qxc4 {[%clk 0:02:59]}  Bc5 {[%clk 0:02:43]} 13. b4 {[%clk 0:02:58]}  Bb6 {[%clk 0:02:43]} 14. a4 {[%clk 0:02:58]}  Qc8 {[%clk 0:02:26]} 15. Qb3 {[%clk 0:02:50]}  a6 {[%clk 0:02:22]} 16. Ba3 {[%clk 0:02:41]}  O-O {[%clk 0:02:13]} 17. Rc1 {[%clk 0:02:40]}  Qb7 {[%clk 0:02:07]} 18. Nd2 {[%clk 0:02:38]}  Rfc8 {[%clk 0:02:05]} 19. Nc4 {[%clk 0:02:36]}  Qd5 {[%clk 0:02:04]} 20. Nd2 {[%clk 0:02:14]}  Qb7 {[%clk 0:01:53]} 21. Nc4 {[%clk 0:02:12]}  Qd5 {[%clk 0:01:52]} 22. Nd2 {[%clk 0:02:11]}  Qe5 {[%clk 0:01:35]} 23. Qf3 {[%clk 0:01:59]}  h5 {[%clk 0:01:07]} 24. Nc4 {[%clk 0:01:58]}  Qd5 {[%clk 0:00:50]} 25. Qxd5 {[%clk 0:01:51]}  exd5 {[%clk 0:00:51]} 26. Nxb6 {[%clk 0:01:45]}  Nxb6 {[%clk 0:00:51]} 27. Bb2 {[%clk 0:01:38]}  Rc4 {[%clk 0:00:35]} 28. Rxc4 {[%clk 0:01:34]}  dxc4 {[%clk 0:00:31]} 29. Bxd4 {[%clk 0:01:35]}  Nd5 {[%clk 0:00:31]} 30. Bc5 {[%clk 0:01:23]}  Rc8 {[%clk 0:00:23]} 31. Rc1 {[%clk 0:01:19]}  a5 {[%clk 0:00:21]} 32. e4 {[%clk 0:01:09]}  axb4 {[%clk 0:00:10]} 33. exd5 {[%clk 0:00:33]}  Rxc5 {[%clk 0:00:09]} 34. d6 {[%clk 0:00:34]}  c3 {[%clk 0:00:09]} 35. d7 {[%clk 0:00:04]}  Rd5 {[%clk 0:00:09]} 36. Rb1 {[%clk 0:00:03]}  c2 {[%clk 0:00:09]} 37. Rc1 {[%clk 0:00:03]}  b3 {[%clk 0:00:09]} 38. Kg2 {[%clk 0:00:03]}  Rxd7 {[%clk 0:00:09]} 0-1


[Site "https://www.chess.com"]

[Event "Titled Tuesday Blitz December 20 Late 2022"]
[White "Flynn, Jacob"]
[Black "Cruz Mendez, Jean Marco"]
[WhiteFideId "2509393"]
[BlackFideId "3526402"]
[WhiteElo "2053"]
[BlackElo "2064"]
[Result "1-0"]
[Round "07"]
[TimeControl "180+1"]
[Date "2022.12.21"]
[WhiteClock "0:01:04"]
[BlackClock "0:00:50"]

1. d4 {[%clk 0:03:00]}  Nf6 {[%clk 0:02:56]} 2. c4 {[%clk 0:03:01]}  c5 {[%clk 0:02:55]} 3. d5 {[%clk 0:03:00]}  d6 {[%clk 0:02:55]} 4. Nc3 {[%clk 0:03:01]}  g6 {[%clk 0:02:55]} 5. e4 {[%clk 0:03:01]}  Bg7 {[%clk 0:02:56]} 6. Nf3 {[%clk 0:03:01]}  O-O {[%clk 0:02:56]} 7. Be2 {[%clk 0:03:01]}  e5 {[%clk 0:02:57]} 8. O-O {[%clk 0:02:58]}  Nbd7 {[%clk 0:02:57]} 9. Ne1 {[%clk 0:02:55]}  Ne8 {[%clk 0:02:56]} 10. Be3 {[%clk 0:02:55]}  f5 {[%clk 0:02:56]} 11. f3 {[%clk 0:02:55]}  f4 {[%clk 0:02:57]} 12. Bf2 {[%clk 0:02:55]}  g5 {[%clk 0:02:57]} 13. Nd3 {[%clk 0:02:53]}  h5 {[%clk 0:02:56]} 14. Rb1 {[%clk 0:02:48]}  Ndf6 {[%clk 0:02:53]} 15. b4 {[%clk 0:02:27]}  b6 {[%clk 0:02:47]} 16. bxc5 {[%clk 0:02:26]}  bxc5 {[%clk 0:02:48]} 17. Kh1 {[%clk 0:02:23]}  g4 {[%clk 0:02:44]} 18. Rg1 {[%clk 0:02:21]}  Qe7 {[%clk 0:02:08]} 19. g3 {[%clk 0:02:16]}  fxg3 {[%clk 0:02:00]} 20. Bxg3 {[%clk 0:02:09]}  Qf7 {[%clk 0:01:58]} 21. fxg4 {[%clk 0:01:59]}  hxg4 {[%clk 0:01:56]} 22. Qd2 {[%clk 0:01:59]}  Qh5 {[%clk 0:01:55]} 23. Nf2 {[%clk 0:01:45]}  Nh7 {[%clk 0:01:53]} 24. Qd1 {[%clk 0:01:40]}  Nef6 {[%clk 0:01:51]} 25. Nb5 {[%clk 0:01:33]}  Rd8 {[%clk 0:01:23]} 26. Nc7 {[%clk 0:01:33]}  Ng5 {[%clk 0:01:22]} 27. Nxa8 {[%clk 0:01:30]}  Ngxe4 {[%clk 0:01:20]} 28. Nxe4 {[%clk 0:01:26]}  Nxe4 {[%clk 0:01:20]} 29. Bd3 {[%clk 0:01:21]}  Ng5 {[%clk 0:01:19]} 30. Nc7 {[%clk 0:01:13]}  Rf8 {[%clk 0:01:16]} 31. Ne6 {[%clk 0:01:07]}  Nxe6 {[%clk 0:00:58]} 32. dxe6 {[%clk 0:01:08]}  Bxe6 {[%clk 0:00:56]} 33. Be4 {[%clk 0:01:07]}  Bh6 {[%clk 0:00:50]} 34. Bd5 {[%clk 0:01:04]} 1-0


[Site "https://www.chess.com"]

[Event "Titled Tuesday Blitz December 20 Late 2022"]
[White "Gomes, Luiz Alexandre de Souza"]
[Black "Torres Dominguez, David"]
[WhiteFideId "2102790"]
[BlackFideId "2220857"]
[WhiteElo "2382"]
[BlackElo "2037"]
[Result "1-0"]
[Round "07"]
[TimeControl "180+1"]
[Date "2022.12.21"]
[WhiteClock "0:01:33"]
[BlackClock "0:00:07"]

1. e4 {[%clk 0:03:00]}  Nc6 {[%clk 0:02:59]} 2. Nf3 {[%clk 0:03:00]}  e5 {[%clk 0:02:59]} 3. Bb5 {[%clk 0:03:00]}  Nge7 {[%clk 0:02:57]} 4. O-O {[%clk 0:03:00]}  g6 {[%clk 0:02:56]} 5. c3 {[%clk 0:03:00]}  Bg7 {[%clk 0:02:56]} 6. d4 {[%clk 0:03:00]}  O-O {[%clk 0:02:57]} 7. d5 {[%clk 0:02:59]}  a6 {[%clk 0:02:57]} 8. Ba4 {[%clk 0:02:58]}  Na7 {[%clk 0:02:57]} 9. c4 {[%clk 0:02:57]}  d6 {[%clk 0:02:56]} 10. h3 {[%clk 0:02:57]}  c5 {[%clk 0:02:56]} 11. dxc6 {[%clk 0:02:57]}  Naxc6 {[%clk 0:02:52]} 12. Nc3 {[%clk 0:02:57]}  Qc7 {[%clk 0:02:15]} 13. Qe2 {[%clk 0:02:55]}  Nd4 {[%clk 0:02:05]} 14. Nxd4 {[%clk 0:02:53]}  exd4 {[%clk 0:02:05]} 15. Nd5 {[%clk 0:02:53]}  Nxd5 {[%clk 0:02:04]} 16. cxd5 {[%clk 0:02:54]}  b5 {[%clk 0:01:58]} 17. Bb3 {[%clk 0:02:53]}  f5 {[%clk 0:01:48]} 18. Bd2 {[%clk 0:02:42]}  fxe4 {[%clk 0:01:46]} 19. Qxe4 {[%clk 0:02:40]}  Bf5 {[%clk 0:01:47]} 20. Qh4 {[%clk 0:02:40]}  Qf7 {[%clk 0:01:32]} 21. Rac1 {[%clk 0:02:37]}  Bf6 {[%clk 0:01:26]} 22. Bg5 {[%clk 0:02:36]}  Bxg5 {[%clk 0:01:26]} 23. Qxg5 {[%clk 0:02:37]}  Bd3 {[%clk 0:01:24]} 24. Rfd1 {[%clk 0:02:30]}  Qxf2+ {[%clk 0:01:21]} 25. Kh1 {[%clk 0:02:31]}  Be4 {[%clk 0:01:12]} 26. Rc7 {[%clk 0:02:18]}  Qf5 {[%clk 0:00:42]} 27. Qxf5 {[%clk 0:02:05]}  Bxf5 {[%clk 0:00:41]} 28. Rxd4 {[%clk 0:02:05]}  Rf7 {[%clk 0:00:41]} 29. Rc6 {[%clk 0:02:03]}  Rd7 {[%clk 0:00:29]} 30. a4 {[%clk 0:02:02]}  Re8 {[%clk 0:00:26]} 31. Rxa6 {[%clk 0:02:00]}  Re2 {[%clk 0:00:18]} 32. axb5 {[%clk 0:01:52]}  Rxb2 {[%clk 0:00:17]} 33. Rb4 {[%clk 0:01:45]}  Re7 {[%clk 0:00:16]} 34. Ra2 {[%clk 0:01:38]}  Rxa2 {[%clk 0:00:13]} 35. Bxa2 {[%clk 0:01:39]}  Re2 {[%clk 0:00:13]} 36. b6 {[%clk 0:01:38]}  Be4 {[%clk 0:00:08]} 37. b7 {[%clk 0:01:33]}  Bxg2+ {[%clk 0:00:07]} 38. Kg1 {[%clk 0:01:33]} 1-0


[Site "https://www.chess.com"]

[Event "Titled Tuesday Blitz December 20 Late 2022"]
[White "Goncalves, Davi Sulzbacher"]
[Black "Alex_Sahakyan2006"]
[WhiteFideId "2154510"]
[WhiteElo "2182"]
[BlackElo "2621"]
[Result "0-1"]
[Round "07"]
[TimeControl "180+1"]
[Date "2022.12.21"]
[WhiteClock "0:00:03"]
[BlackClock "0:01:27"]

1. Nf3 {[%clk 0:03:00]}  g6 {[%clk 0:02:58]} 2. e4 {[%clk 0:02:59]}  c5 {[%clk 0:02:57]} 3. d4 {[%clk 0:02:59]}  cxd4 {[%clk 0:02:57]} 4. Qxd4 {[%clk 0:02:59]}  Nf6 {[%clk 0:02:56]} 5. e5 {[%clk 0:02:58]}  Nc6 {[%clk 0:02:56]} 6. Qh4 {[%clk 0:02:55]}  Nxe5 {[%clk 0:02:51]} 7. Nxe5 {[%clk 0:02:52]}  Qa5+ {[%clk 0:02:50]} 8. Nc3 {[%clk 0:02:52]}  Qxe5+ {[%clk 0:02:51]} 9. Be2 {[%clk 0:02:52]}  Bg7 {[%clk 0:02:49]} 10. Bf4 {[%clk 0:02:30]}  Qc5 {[%clk 0:02:46]} 11. Be3 {[%clk 0:02:19]}  Qa5 {[%clk 0:02:41]} 12. Bh6 {[%clk 0:01:58]}  O-O {[%clk 0:02:38]} 13. Bxg7 {[%clk 0:01:58]}  Kxg7 {[%clk 0:02:39]} 14. O-O-O {[%clk 0:01:56]}  d6 {[%clk 0:02:39]} 15. g4 {[%clk 0:01:47]}  h6 {[%clk 0:02:26]} 16. f4 {[%clk 0:01:46]}  g5 {[%clk 0:02:26]} 17. Qf2 {[%clk 0:01:39]}  gxf4 {[%clk 0:02:26]} 18. h4 {[%clk 0:01:38]}  Qe5 {[%clk 0:02:22]} 19. g5 {[%clk 0:01:27]}  Ne4 {[%clk 0:02:20]} 20. Nxe4 {[%clk 0:01:22]}  Qxe4 {[%clk 0:02:21]} 21. gxh6+ {[%clk 0:01:14]}  Kxh6 {[%clk 0:02:22]} 22. Kb1 {[%clk 0:00:58]}  Be6 {[%clk 0:02:21]} 23. Bd3 {[%clk 0:00:52]}  Qe3 {[%clk 0:02:21]} 24. Qh2 {[%clk 0:00:36]}  Rg8 {[%clk 0:02:16]} 25. Rhf1 {[%clk 0:00:26]}  Rg4 {[%clk 0:02:07]} 26. Rde1 {[%clk 0:00:18]}  Qg3 {[%clk 0:02:03]} 27. Qd2 {[%clk 0:00:18]}  Rag8 {[%clk 0:02:02]} 28. b3 {[%clk 0:00:16]}  Qg2 {[%clk 0:01:54]} 29. Qb4 {[%clk 0:00:16]}  f3 {[%clk 0:01:42]} 30. Qxb7 {[%clk 0:00:15]}  f2 {[%clk 0:01:42]} 31. Rxe6+ {[%clk 0:00:10]}  fxe6 {[%clk 0:01:39]} 32. Qxe7 {[%clk 0:00:10]}  R4g6 {[%clk 0:01:32]} 33. h5 {[%clk 0:00:04]}  Qg5 {[%clk 0:01:32]} 34. Qxd6 {[%clk 0:00:04]}  Rf6 {[%clk 0:01:28]} 35. Qc5 {[%clk 0:00:03]}  Qxc5 {[%clk 0:01:27]} 0-1


[Site "https://www.chess.com"]

[Event "Titled Tuesday Blitz December 20 Late 2022"]
[White "Goroshkov, Maksym"]
[Black "Silva, Miguel Antonio Neto"]
[WhiteFideId "14142716"]
[BlackFideId "1911929"]
[WhiteElo "2258"]
[BlackElo "2223"]
[Result "0-1"]
[Round "07"]
[TimeControl "180+1"]
[Date "2022.12.21"]
[WhiteClock "0:01:26"]
[BlackClock "0:01:27"]

1. e4 {[%clk 0:03:00]}  c5 {[%clk 0:02:58]} 2. d4 {[%clk 0:02:59]}  cxd4 {[%clk 0:02:58]} 3. c3 {[%clk 0:03:00]}  dxc3 {[%clk 0:02:56]} 4. Nxc3 {[%clk 0:03:01]}  Nc6 {[%clk 0:02:54]} 5. Nf3 {[%clk 0:03:01]}  d6 {[%clk 0:02:54]} 6. Bb5 {[%clk 0:03:00]}  Bd7 {[%clk 0:02:50]} 7. O-O {[%clk 0:02:58]}  Nf6 {[%clk 0:02:49]} 8. Bg5 {[%clk 0:02:57]}  e6 {[%clk 0:02:48]} 9. Qe2 {[%clk 0:02:50]}  Be7 {[%clk 0:02:47]} 10. Rfd1 {[%clk 0:02:49]}  Qb8 {[%clk 0:02:45]} 11. Bf4 {[%clk 0:02:47]}  Ne5 {[%clk 0:02:33]} 12. Bxe5 {[%clk 0:02:36]}  dxe5 {[%clk 0:02:32]} 13. Bxd7+ {[%clk 0:02:02]}  Nxd7 {[%clk 0:02:31]} 14. Qb5 {[%clk 0:02:02]}  Qc7 {[%clk 0:02:29]} 15. Nxe5 {[%clk 0:01:52]}  Qxe5 {[%clk 0:02:06]} 16. Qxd7+ {[%clk 0:01:51]}  Kf8 {[%clk 0:02:05]} 17. Qxb7 {[%clk 0:01:51]}  Rb8 {[%clk 0:01:55]} 18. Qxa7 {[%clk 0:01:39]}  g6 {[%clk 0:01:54]} 19. Rac1 {[%clk 0:01:25]}  Bc5 {[%clk 0:01:53]} 20. Qa5 {[%clk 0:01:15]}  Bxf2+ {[%clk 0:01:51]} 21. Kxf2 {[%clk 0:01:16]}  Qxa5 {[%clk 0:01:50]} 22. b3 {[%clk 0:01:15]}  Kg7 {[%clk 0:01:50]} 23. Ne2 {[%clk 0:01:15]}  Rhd8 {[%clk 0:01:49]} 24. Nd4 {[%clk 0:01:15]}  Qxa2+ {[%clk 0:01:46]} 25. Kf3 {[%clk 0:01:12]}  Rxd4 {[%clk 0:01:45]} 26. Rxd4 {[%clk 0:01:12]}  Rxb3+ {[%clk 0:01:45]} 27. Kf4 {[%clk 0:01:11]}  Qf2+ {[%clk 0:01:39]} 28. Ke5 {[%clk 0:01:10]}  Rb5+ {[%clk 0:01:38]} 29. Rd5 {[%clk 0:01:10]}  Rxd5+ {[%clk 0:01:36]} 30. exd5 {[%clk 0:01:11]}  Qe3+ {[%clk 0:01:35]} 31. Kd6 {[%clk 0:01:11]}  Qxc1 {[%clk 0:01:36]} 32. dxe6 {[%clk 0:01:12]}  fxe6 {[%clk 0:01:35]} 33. Kxe6 {[%clk 0:01:13]}  Qd2 {[%clk 0:01:35]} 34. g4 {[%clk 0:01:14]}  Qxh2 {[%clk 0:01:35]} 35. g5 {[%clk 0:01:15]}  Qf4 {[%clk 0:01:35]} 36. Kd5 {[%clk 0:01:14]}  Qxg5+ {[%clk 0:01:35]} 37. Ke4 {[%clk 0:01:15]}  Qf6 {[%clk 0:01:35]} 38. Ke3 {[%clk 0:01:15]}  Qf5 {[%clk 0:01:34]} 39. Ke2 {[%clk 0:01:16]}  Qf4 {[%clk 0:01:34]} 40. Kd3 {[%clk 0:01:16]}  Qe5 {[%clk 0:01:34]} 41. Kc4 {[%clk 0:01:16]}  Qd6 {[%clk 0:01:33]} 42. Kb5 {[%clk 0:01:17]}  Qc7 {[%clk 0:01:33]} 43. Ka6 {[%clk 0:01:18]}  Qb8 {[%clk 0:01:33]} 44. Ka5 {[%clk 0:01:19]}  Qb7 {[%clk 0:01:33]} 45. Ka4 {[%clk 0:01:19]}  Qb2 {[%clk 0:01:33]} 46. Ka5 {[%clk 0:01:19]}  Qb3 {[%clk 0:01:33]} 47. Ka6 {[%clk 0:01:19]}  g5 {[%clk 0:01:33]} 48. Ka7 {[%clk 0:01:19]}  Kf6 {[%clk 0:01:33]} 49. Ka6 {[%clk 0:01:20]}  Ke7 {[%clk 0:01:34]} 50. Ka7 {[%clk 0:01:20]}  Kd6 {[%clk 0:01:35]} 51. Ka8 {[%clk 0:01:19]}  Kc6 {[%clk 0:01:36]} 52. Ka7 {[%clk 0:01:19]}  Qb5 {[%clk 0:01:36]} 53. Ka8 {[%clk 0:01:19]}  Kc7 {[%clk 0:01:37]} 54. Ka7 {[%clk 0:01:19]}  g4 {[%clk 0:01:37]} 55. Ka8 {[%clk 0:01:20]}  h6 {[%clk 0:01:38]} 56. Ka7 {[%clk 0:01:20]}  h5 {[%clk 0:01:39]} 57. Ka8 {[%clk 0:01:21]}  h4 {[%clk 0:01:40]} 58. Ka7 {[%clk 0:01:21]}  h3 {[%clk 0:01:40]} 59. Ka8 {[%clk 0:01:22]}  g3 {[%clk 0:01:40]} 60. Ka7 {[%clk 0:01:23]}  g2 {[%clk 0:01:40]} 61. Ka8 {[%clk 0:01:24]}  h2 {[%clk 0:01:40]} 62. Ka7 {[%clk 0:01:25]}  g1=Q+ {[%clk 0:01:40]} 63. Ka8 {[%clk 0:01:26]}  h1=B# {[%clk 0:01:27]} 0-1


[Site "https://www.chess.com"]

[Event "Titled Tuesday Blitz December 20 Late 2022"]
[White "Goryachkina, Aleksandra"]
[Black "Kamsky, Gata"]
[WhiteFideId "4147103"]
[BlackFideId "2000024"]
[WhiteElo "2484"]
[BlackElo "2666"]
[Result "0-1"]
[Round "07"]
[TimeControl "180+1"]
[Date "2022.12.20"]
[WhiteClock "0:00:02"]
[BlackClock "0:00:39"]

1. Nf3 {[%clk 0:02:59]}  Nf6 {[%clk 0:02:58]} 2. c4 {[%clk 0:02:59]}  g6 {[%clk 0:02:58]} 3. Nc3 {[%clk 0:02:57]}  Bg7 {[%clk 0:02:57]} 4. e4 {[%clk 0:02:56]}  d6 {[%clk 0:02:57]} 5. d4 {[%clk 0:02:56]}  c6 {[%clk 0:02:56]} 6. Be2 {[%clk 0:02:55]}  a6 {[%clk 0:02:56]} 7. O-O {[%clk 0:02:38]}  b5 {[%clk 0:02:56]} 8. a3 {[%clk 0:02:25]}  O-O {[%clk 0:02:54]} 9. h3 {[%clk 0:02:22]}  bxc4 {[%clk 0:02:43]} 10. Bxc4 {[%clk 0:02:18]}  d5 {[%clk 0:02:44]} 11. Bd3 {[%clk 0:02:17]}  dxe4 {[%clk 0:02:44]} 12. Nxe4 {[%clk 0:02:17]}  Nxe4 {[%clk 0:02:44]} 13. Bxe4 {[%clk 0:02:17]}  Be6 {[%clk 0:02:45]} 14. Bf4 {[%clk 0:02:12]}  Bd5 {[%clk 0:02:45]} 15. Re1 {[%clk 0:02:09]}  e6 {[%clk 0:02:43]} 16. Be5 {[%clk 0:01:58]}  a5 {[%clk 0:02:37]} 17. Rc1 {[%clk 0:01:55]}  a4 {[%clk 0:02:34]} 18. Bxg7 {[%clk 0:01:54]}  Kxg7 {[%clk 0:02:33]} 19. Ne5 {[%clk 0:01:54]}  Qb6 {[%clk 0:02:31]} 20. Qd2 {[%clk 0:01:49]}  Ra7 {[%clk 0:02:25]} 21. Ng4 {[%clk 0:01:36]}  Nd7 {[%clk 0:02:19]} 22. Bxd5 {[%clk 0:00:56]}  cxd5 {[%clk 0:02:17]} 23. Rc3 {[%clk 0:00:55]}  h5 {[%clk 0:01:58]} 24. Ne5 {[%clk 0:00:26]}  Nxe5 {[%clk 0:01:57]} 25. dxe5 {[%clk 0:00:27]}  Rb8 {[%clk 0:01:53]} 26. Re2 {[%clk 0:00:24]}  Rc7 {[%clk 0:01:45]} 27. Rxc7 {[%clk 0:00:20]}  Qxc7 {[%clk 0:01:44]} 28. Qd4 {[%clk 0:00:19]}  Qc6 {[%clk 0:01:37]} 29. Kh2 {[%clk 0:00:18]}  Rc8 {[%clk 0:01:35]} 30. Qf4 {[%clk 0:00:15]}  Qd7 {[%clk 0:01:30]} 31. Rd2 {[%clk 0:00:14]}  Kg8 {[%clk 0:01:20]} 32. Rd4 {[%clk 0:00:13]}  Ra8 {[%clk 0:00:56]} 33. Rb4 {[%clk 0:00:13]}  Qc7 {[%clk 0:00:53]} 34. g3 {[%clk 0:00:12]}  Qc2 {[%clk 0:00:48]} 35. Rb7 {[%clk 0:00:11]}  Qf5 {[%clk 0:00:45]} 36. Qxf5 {[%clk 0:00:10]}  gxf5 {[%clk 0:00:45]} 37. Kg2 {[%clk 0:00:08]}  Rc8 {[%clk 0:00:44]} 38. Rb4 {[%clk 0:00:07]}  Rc2 {[%clk 0:00:44]} 39. Kf3 {[%clk 0:00:06]}  Kg7 {[%clk 0:00:42]} 40. g4 {[%clk 0:00:05]}  hxg4+ {[%clk 0:00:40]} 41. hxg4 {[%clk 0:00:06]}  Kg6 {[%clk 0:00:39]} 42. gxf5+ {[%clk 0:00:04]}  Kxf5 {[%clk 0:00:39]} 43. Rf4+ {[%clk 0:00:02]}  Kxe5 {[%clk 0:00:39]} 44. Rxf7 {[%clk 0:00:02]}  Rxb2 {[%clk 0:00:39]} 0-1


[Site "https://www.chess.com"]